bitfinex/quotes_BTCUSD_20251031
["timestamp","ask_amount","ask_price","bid_price","bid_amount"]
[1761951587121,4.43571726,109820.0,109810.0,0.00022194]
[1761951587337,4.83144099,109820.0,109810.0,0.00022194]
[1761951588640,4.88063625,109820.0,109810.0,0.00022194]
[1761951589484,4.87863625,109820.0,109810.0,0.00022194]
[1761951589642,4.88063625,109820.0,109810.0,0.00022194]
[1761951590267,4.87863625,109820.0,109810.0,0.00022194]
[1761951590472,4.88063625,109820.0,109810.0,0.00022194]
[1761951593144,4.8663484,109820.0,109810.0,0.00022194]
[1761951593534,4.8643484,109820.0,109810.0,0.00022194]
[1761951593739,4.8663484,109820.0,109810.0,0.00022194]
[1761951596361,4.88063626,109820.0,109810.0,0.00022194]
[1761951597394,4.86634385,109820.0,109810.0,0.00022194]
[1761951597559,4.86634314,109820.0,109810.0,0.00022194]
[1761951600285,4.91662322,109820.0,109810.0,0.00022194]
[1761951600487,6.18784415,109820.0,109790.0,0.004]
[1761951600723,4.77127489,109800.0,109790.0,0.004]
[1761951600937,4.83344245,109800.0,109790.0,0.004]
[1761951601389,4.83344245,109800.0,109790.0,0.00527087]
[1761951601724,4.83544245,109800.0,109790.0,0.00527087]
[1761951602691,4.83544245,109800.0,109790.0,0.00727087]
[1761951603290,4.83344245,109800.0,109790.0,0.00727087]
[1761951603503,4.83544245,109800.0,109790.0,0.00727087]
[1761951603901,4.83344245,109800.0,109790.0,0.00727087]
[1761951604533,4.90164582,109800.0,109790.0,0.00727087]
[1761951604737,4.90364582,109800.0,109790.0,0.00727087]
[1761951605567,4.90164582,109800.0,109790.0,0.00727087]
[1761951606305,4.90162644,109800.0,109790.0,0.00727087]
[1761951606657,4.91591571,109800.0,109790.0,0.00727087]
[1761951607504,4.90362644,109800.0,109790.0,0.00727087]
[1761951607968,4.90362644,109800.0,109790.0,0.00527087]
[1761951608209,4.90762644,109800.0,109790.0,0.00527087]
[1761951609218,4.90562644,109800.0,109790.0,0.00527087]
[1761951609394,4.90762644,109800.0,109790.0,0.00527087]
[1761951610248,4.90662644,109800.0,109790.0,0.00527087]
[1761951610533,4.9199157,109800.0,109790.0,0.00527087]
[1761951610881,4.9219157,109800.0,109790.0,0.00527087]
[1761951611089,4.93620928,109800.0,109790.0,0.00527087]
[1761951611293,4.93620497,109800.0,109790.0,0.00527087]
[1761951611897,4.92191139,109800.0,109790.0,0.00527087]
[1761951613141,4.90223419,109800.0,109790.0,0.00527087]
[1761951613362,4.88909246,109800.0,109790.0,0.00527087]
[1761951613573,4.88709246,109800.0,109790.0,0.00527087]
[1761951613886,4.88909246,109800.0,109790.0,0.00527087]
[1761951614406,4.88709246,109800.0,109790.0,0.00527087]
[1761951614865,4.88909246,109800.0,109790.0,0.00527087]
[1761951615080,4.88709246,109800.0,109790.0,0.00527087]
[1761951615314,4.88909246,109800.0,109790.0,0.00527087]
[1761951615718,4.88709246,109800.0,109790.0,0.00527087]
[1761951615961,4.88909246,109800.0,109790.0,0.00527087]
[1761951617361,4.88709246,109800.0,109790.0,0.00527087]
[1761951618213,4.88909246,109800.0,109790.0,0.00527087]
[1761951619520,4.92188304,109800.0,109790.0,0.00527087]
[1761951620784,4.90759378,109800.0,109790.0,0.00527087]
[1761951622602,4.90559378,109800.0,109790.0,0.00527087]
[1761951623455,4.90759378,109800.0,109790.0,0.00527087]
[1761951623902,4.92188299,109800.0,109790.0,0.00527087]
[1761951624330,4.91988299,109800.0,109790.0,0.00527087]
[1761951624715,4.92188299,109800.0,109790.0,0.00527087]
[1761951625017,4.91988299,109800.0,109790.0,0.00527087]
[1761951625264,4.93417653,109800.0,109790.0,0.00527087]
[1761951625685,4.91988299,109800.0,109790.0,0.00527087]
[1761951628806,4.39258987,109800.0,109790.0,0.05497087]
[1761951629023,4.35979929,109800.0,109790.0,0.05497087]
[1761951629452,4.39258987,109800.0,109790.0,0.05497087]
[1761951629649,4.40823987,109800.0,109790.0,0.03245087]
[1761951630665,4.40823987,109800.0,109790.0,0.00527087]
[1761951630889,4.82036562,109800.0,109790.0,0.00527087]
[1761951631313,4.80607641,109800.0,109790.0,0.00527087]
[1761951633040,4.78920641,109800.0,109790.0,0.03245087]
[1761951633253,4.78920641,109800.0,109790.0,0.01679087]
[1761951633458,4.78920641,109800.0,109790.0,0.00527087]
[1761951634106,4.80607641,109800.0,109790.0,0.00527087]
[1761951634550,4.82036551,109800.0,109790.0,0.00527087]
[1761951637267,4.82037273,109800.0,109790.0,0.00527087]
[1761951638152,4.80350273,109800.0,109790.0,0.00527087]
[1761951639085,4.81779607,109800.0,109790.0,0.00527087]
[1761951639302,4.81779607,109800.0,109790.0,0.03245087]
[1761951639508,4.80350273,109800.0,109790.0,0.03245087]
[1761951642269,4.78921363,109800.0,109790.0,0.03245087]
[1761951643205,4.79121363,109800.0,109790.0,0.03245087]
[1761951643536,4.78921363,109800.0,109790.0,0.03245087]
[1761951643754,4.80608363,109800.0,109790.0,0.00527087]
[1761951643964,4.80808363,109800.0,109790.0,0.00527087]
[1761951644394,4.78921363,109800.0,109790.0,0.00527087]
[1761951644599,4.79121363,109800.0,109790.0,0.00527087]
[1761951645626,4.80550275,109800.0,109790.0,0.00527087]
[1761951646133,4.80350275,109800.0,109790.0,0.00527087]
[1761951646366,4.80550275,109800.0,109790.0,0.00527087]
[1761951647518,4.80550275,109800.0,109790.0,0.02123087]
[1761951647810,4.80350275,109800.0,109790.0,0.02123087]
[1761951649205,4.80550275,109800.0,109790.0,0.02123087]
[1761951649425,4.41040206,109800.0,109790.0,0.02123087]
[1761951649642,4.40840206,109800.0,109790.0,0.02123087]
[1761951649838,4.41040206,109800.0,109790.0,0.02123087]
[1761951650046,4.40840206,109800.0,109790.0,0.02123087]
[1761951650275,4.41040206,109800.0,109790.0,0.02123087]
[1761951651858,4.40840206,109800.0,109790.0,0.02123087]
[1761951652067,4.43579002,109800.0,109790.0,0.02123087]
[1761951652611,4.43779002,109800.0,109790.0,0.02123087]
[1761951653114,4.4520855,109800.0,109790.0,0.02123087]
[1761951653286,4.43779002,109800.0,109790.0,0.02123087]
[1761951653871,4.43579002,109800.0,109790.0,0.02123087]
[1761951654685,4.43779002,109800.0,109790.0,0.02123087]
[1761951654899,4.43579002,109800.0,109790.0,0.02123087]
[1761951655109,4.43779002,109800.0,109790.0,0.02123087]
[1761951656668,4.4520855,109800.0,109790.0,0.02123087]
[1761951657053,4.23601643,109800.0,109790.0,0.02123087]
[1761951657269,4.41816579,109800.0,109790.0,0.02123087]
[1761951657647,4.40387667,109800.0,109790.0,0.02123087]
[1761951658053,4.00854339,109800.0,109790.0,0.02123087]
[1761951658252,4.40387667,109800.0,109790.0,0.02123087]
[1761951660718,4.41816579,109800.0,109790.0,0.02123087]
[1761951660874,4.41616579,109800.0,109790.0,0.02123087]
[1761951662601,4.40387667,109800.0,109790.0,0.02123087]
[1761951662805,4.40187667,109800.0,109790.0,0.03256087]
[1761951662942,4.40187667,109800.0,109790.0,0.05727087]
[1761951663937,4.40387667,109800.0,109790.0,0.05727087]
[1761951664139,4.38622667,109800.0,109790.0,0.05727087]
[1761951665684,4.40051579,109800.0,109790.0,0.05727087]
[1761951666318,3.29705539,109800.0,109790.0,0.05727087]
[1761951666721,3.69238867,109800.0,109790.0,0.05727087]
[1761951666893,3.87453803,109800.0,109790.0,0.05727087]
[1761951667314,3.87153803,109800.0,109790.0,0.08465563]
[1761951667543,3.68938867,109800.0,109790.0,0.08465563]
[1761951667757,4.26787131,109800.0,109790.0,0.08465563]
[1761951668171,4.26687131,109800.0,109790.0,0.08465563]
[1761951668394,4.26787131,109800.0,109790.0,0.08465563]
[1761951670574,4.28294131,109800.0,109790.0,0.08465563]
[1761951670783,4.28494131,109800.0,109790.0,0.05727087]
[1761951670994,4.26865219,109800.0,109790.0,0.05727087]
[1761951671873,4.2960385,109800.0,109790.0,0.05727087]
[1761951672356,4.2809685,109800.0,109790.0,0.05727087]
[1761951672569,4.3129085,109800.0,109790.0,0.00527087]
[1761951672802,4.34909078,109800.0,109790.0,0.00527087]
[1761951673018,4.34909078,109800.0,109790.0,0.02123087]
[1761951673019,4.33222078,109800.0,109790.0,0.02123087]
[1761951673235,4.33422078,109800.0,109790.0,0.02123087]
[1761951673665,4.33422078,109800.0,109790.0,0.03330087]
[1761951674085,4.34650993,109800.0,109790.0,0.03330087]
[1761951674295,4.34850993,109800.0,109790.0,0.05703087]
[1761951674514,4.33143993,109800.0,109790.0,0.05703087]
[1761951674907,4.39980056,109800.0,109790.0,0.05703087]
[1761951675276,4.41535056,109800.0,109790.0,0.03330087]
[1761951675884,4.41735056,109800.0,109790.0,0.03330087]
[1761951677806,4.41535056,109800.0,109790.0,0.03330087]
[1761951678014,4.41735056,109800.0,109790.0,0.03330087]
[1761951678227,4.41535056,109800.0,109790.0,0.01734087]
[1761951678434,4.41535056,109800.0,109790.0,0.03365087]
[1761951678978,4.41735056,109800.0,109790.0,0.03365087]
[1761951679607,4.41535056,109800.0,109790.0,0.03365087]
[1761951679756,4.41735056,109800.0,109790.0,0.03365087]
[1761951680566,4.41535056,109800.0,109790.0,0.03365087]
[1761951681823,4.39980056,109800.0,109790.0,0.05770087]
[1761951682680,4.41721056,109800.0,109790.0,0.05770087]
[1761951682905,4.41521056,109800.0,109790.0,0.03365087]
[1761951683115,4.41721056,109800.0,109790.0,0.03365087]
[1761951683338,4.39980056,109800.0,109790.0,0.05770087]
[1761951685281,4.05980056,109800.0,109790.0,0.05770087]
[1761951686469,4.07521056,109800.0,109790.0,0.05770087]
[1761951686828,4.06667096,109800.0,109790.0,0.05770087]
[1761951687070,4.07519537,109800.0,109790.0,0.05770087]
[1761951687295,4.41519537,109800.0,109790.0,0.05770087]
[1761951687535,4.41719537,109800.0,109790.0,0.03365087]
[1761951688045,4.40290622,109800.0,109790.0,0.03365087]
[1761951688947,4.28095331,109800.0,109790.0,0.05770087]
[1761951691068,4.29636331,109800.0,109790.0,0.03365087]
[1761951691296,4.31265232,109800.0,109790.0,0.03365087]
[1761951691506,4.29524232,109800.0,109790.0,0.05770087]
[1761951691745,4.29724232,109800.0,109790.0,0.05770087]
[1761951692683,4.29524232,109800.0,109790.0,0.05770087]
[1761951693629,4.28095331,109800.0,109790.0,0.05770087]
[1761951694498,4.29836331,109800.0,109790.0,0.05770087]
[1761951694703,4.29636331,109800.0,109790.0,0.05770087]
[1761951695886,4.29836331,109800.0,109790.0,0.05770087]
[1761951696290,4.29636331,109800.0,109790.0,0.05770087]
[1761951696919,4.31265232,109800.0,109790.0,0.05770087]
[1761951698107,4.31265232,109800.0,109790.0,0.05270087]
[1761951699891,4.31065232,109800.0,109790.0,0.05270087]
[1761951701133,4.29636331,109800.0,109790.0,0.05270087]
[1761951701344,4.28095331,109800.0,109790.0,0.05270087]
[1761951703017,4.29636331,109800.0,109790.0,0.05270087]
[1761951703626,4.29836331,109800.0,109790.0,0.05270087]
[1761951704117,4.29636331,109800.0,109790.0,0.02865087]
[1761951704319,4.31265232,109800.0,109790.0,0.02865087]
[1761951704745,4.31065232,109800.0,109790.0,0.02865087]
[1761951704933,4.31265232,109800.0,109790.0,0.02865087]
[1761951706179,4.31141439,109800.0,109790.0,0.02865087]
[1761951707751,4.29712538,109800.0,109790.0,0.02865087]
[1761951709452,4.57593179,109800.0,109790.0,0.02865087]
[1761951711022,4.59022081,109800.0,109790.0,0.02865087]
[1761951711345,4.57593179,109800.0,109790.0,0.02865087]
[1761951712052,4.57393179,109800.0,109790.0,0.02865087]
[1761951712501,4.57593179,109800.0,109790.0,0.02865087]
[1761951712700,4.57593539,109800.0,109790.0,0.02865087]
[1761951714131,4.57393539,109800.0,109790.0,0.02865087]
[1761951714280,4.57593539,109800.0,109790.0,0.02865087]
[1761951714703,4.57393539,109800.0,109790.0,0.02865087]
[1761951714915,4.57593539,109800.0,109790.0,0.02865087]
[1761951715945,4.57393539,109800.0,109790.0,0.02865087]
[1761951717174,4.57593539,109800.0,109790.0,0.02865087]
[1761951719396,4.57393539,109800.0,109790.0,0.02865087]
[1761951719885,4.61011767,109800.0,109790.0,0.00027087]
[1761951720104,4.62698767,109800.0,109790.0,0.00027087]
[1761951720321,4.60139537,109800.0,109790.0,0.00027087]
[1761951720530,4.43509942,109800.0,109790.0,0.00027087]
[1761951720973,4.43309942,109800.0,109790.0,0.00027087]
[1761951721193,4.43509942,109800.0,109790.0,0.00027087]
[1761951721968,4.43309942,109800.0,109790.0,0.00027087]
[1761951722166,4.43509942,109800.0,109790.0,0.00027087]
[1761951722612,4.40571311,109800.0,109790.0,0.00027087]
[1761951722810,4.40771311,109800.0,109790.0,0.00027087]
[1761951723804,4.40571311,109800.0,109790.0,0.00027087]
[1761951724666,4.40771311,109800.0,109790.0,0.00027087]
[1761951724969,4.42200255,109800.0,109790.0,0.00027087]
[1761951725181,4.42000255,109800.0,109790.0,0.00027087]
[1761951725394,4.42200255,109800.0,109790.0,0.00027087]
[1761951726034,4.42199121,109800.0,109790.0,0.00027087]
[1761951726246,4.41999121,109800.0,109790.0,0.00027087]
[1761951727519,4.40770177,109800.0,109790.0,0.00027087]
[1761951727718,4.45270177,109800.0,109790.0,0.00027087]
[1761951727948,4.45070177,109800.0,109790.0,0.00027087]
[1761951728335,4.45270177,109800.0,109790.0,0.00027087]
[1761951728543,4.43383177,109800.0,109790.0,0.00027087]
[1761951728746,4.43583177,109800.0,109790.0,0.00027087]
[1761951729420,4.43383177,109800.0,109790.0,0.00027087]
[1761951730552,4.44812105,109800.0,109790.0,0.00027087]
[1761951731619,4.45012105,109800.0,109790.0,0.00027087]
[1761951731826,4.44812105,109800.0,109790.0,0.00027087]
[1761951732038,4.46699105,109800.0,109790.0,0.00027087]
[1761951732658,4.45270177,109800.0,109790.0,0.00027087]
[1761951734545,4.45070177,109800.0,109790.0,0.00027087]
[1761951734753,4.41842177,109800.0,109790.0,0.05080087]
[1761951735313,4.43436177,109800.0,109790.0,0.05080087]
[1761951735518,4.44865087,109800.0,109790.0,0.05080087]
[1761951735737,4.44865087,109800.0,109790.0,0.02823087]
[1761951736949,4.14649038,109800.0,109790.0,0.02823087]
[1761951737177,3.75115355,109800.0,109790.0,0.05080087]
[1761951737393,3.91901381,109800.0,109790.0,0.05080087]
[1761951737833,3.90471833,109800.0,109790.0,0.05080087]
[1761951740875,3.91900688,109800.0,109790.0,0.05080087]
[1761951741086,3.90471833,109800.0,109790.0,0.05080087]
[1761951743973,3.91900688,109800.0,109790.0,0.05080087]
[1761951748285,3.90195772,109800.0,109790.0,0.05080087]
[1761951750583,3.91899054,109800.0,109790.0,0.05080087]
[1761951751354,3.94867487,109800.0,109790.0,0.05080087]
[1761951751554,3.94867487,109800.0,109790.0,0.02823087]
[1761951751555,4.3440117,109800.0,109790.0,0.02823087]
[1761951751771,4.32971737,109800.0,109790.0,0.00027087]
[1761951751966,4.34658737,109800.0,109790.0,0.00027087]
[1761951752305,4.32971737,109800.0,109790.0,0.00027087]
[1761951752676,4.39992758,109800.0,109790.0,0.00027087]
[1761951752934,4.41479758,109800.0,109790.0,0.00027087]
[1761951753325,4.44218449,109800.0,109790.0,0.00027087]
[1761951753733,4.44418449,109800.0,109790.0,0.00027087]
[1761951753960,4.44218449,109800.0,109790.0,0.00027087]
[1761951754939,4.44418449,109800.0,109790.0,0.00027087]
[1761951755555,4.42989594,109800.0,109790.0,0.00027087]
[1761951756534,4.42789594,109800.0,109790.0,0.00027087]
[1761951756751,4.42989594,109800.0,109790.0,0.00027087]
[1761951757789,4.42789594,109800.0,109790.0,0.00027087]
[1761951757971,4.42989594,109800.0,109790.0,0.00027087]
[1761951758317,3.22501545,109800.0,109790.0,0.02815087]
[1761951758518,4.42531512,109800.0,109790.0,0.05130087]
[1761951758732,4.42531512,109800.0,109790.0,0.02815087]
[1761951765135,4.42731512,109800.0,109790.0,0.02815087]
[1761951765364,4.42531512,109800.0,109790.0,0.02815087]
[1761951765751,4.43960985,109800.0,109790.0,0.02815087]
[1761951766157,4.42531512,109800.0,109790.0,0.02815087]
[1761951766745,4.42732285,109800.0,109790.0,0.02815087]
[1761951768702,4.41303367,109800.0,109790.0,0.02815087]
[1761951769110,4.4273284,109800.0,109790.0,0.02815087]
[1761951769321,4.4253284,109800.0,109790.0,0.02815087]
[1761951769730,4.24428201,109800.0,109790.0,0.02815087]
[1761951771400,3.84890756,109800.0,109790.0,0.02815087]
[1761951771608,3.84870756,109800.0,109790.0,0.05237087]
[1761951771817,3.84870756,109800.0,109790.0,0.02815087]
[1761951772022,3.86299658,109800.0,109790.0,0.02815087]
[1761951778334,3.86299601,109800.0,109790.0,0.02815087]
[1761951781800,3.86299601,109800.0,109790.0,0.01171087]
[1761951782002,3.84870699,109800.0,109790.0,0.00027087]
[1761951782223,3.86757699,109800.0,109790.0,0.00027087]
[1761951782893,3.89836757,109800.0,109790.0,0.00027087]
[1761951783116,3.90036757,109800.0,109790.0,0.00027087]
[1761951783348,3.89836757,109800.0,109790.0,0.00027087]
[1761951783572,3.99018658,109800.0,109790.0,0.00027087]
[1761951783790,3.95315983,109800.0,109790.0,0.00027087]
[1761951784016,3.93454985,109800.0,109790.0,0.00027087]
[1761951785272,3.94883938,109800.0,109790.0,0.00027087]
[1761951786896,3.95083938,109800.0,109790.0,0.00027087]
[1761951788025,3.94883938,109800.0,109790.0,0.00027087]
[1761951788238,3.95083938,109800.0,109790.0,0.00027087]
[1761951790764,3.94883938,109800.0,109790.0,0.00027087]
[1761951792097,3.95083938,109800.0,109790.0,0.00027087]
[1761951792322,3.94883938,109800.0,109790.0,0.00027087]
[1761951792561,3.95083938,109800.0,109790.0,0.00027087]
[1761951794475,3.94883938,109800.0,109790.0,0.00027087]
[1761951795093,3.95083938,109800.0,109790.0,0.00027087]
[1761951795723,3.94883938,109800.0,109790.0,0.00027087]
[1761951795930,3.93654985,109800.0,109790.0,0.00027087]
[1761951796557,3.93454985,109800.0,109790.0,0.00027087]
[1761951796762,3.90248985,109800.0,109790.0,0.05213087]
[1761951797858,3.86969927,109800.0,109790.0,0.05213087]
[1761951798908,3.88398839,109800.0,109790.0,0.05213087]
[1761951799796,3.88398292,109800.0,109790.0,0.05213087]
[1761951802978,3.84780064,109800.0,109790.0,0.05213087]
[1761951803193,3.77959043,109800.0,109790.0,0.05213087]
[1761951803845,3.7652957,109800.0,109790.0,0.05213087]
[1761951804775,3.7812957,109800.0,109790.0,0.05213087]
[1761951805631,3.7981657,109800.0,109790.0,0.00027087]
[1761951805964,3.83295628,109800.0,109790.0,0.00027087]
[1761951806106,3.83095628,109800.0,109790.0,0.00027087]
[1761951806529,3.86713856,109800.0,109790.0,0.00027087]
[1761951806706,3.86613856,109800.0,109790.0,0.00027087]
[1761951806906,3.86813856,109800.0,109790.0,0.00027087]
[1761951807106,3.88243358,109800.0,109790.0,0.00027087]
[1761951807599,3.88443358,109800.0,109790.0,0.00027087]
[1761951807719,3.88543358,109800.0,109790.0,0.00027087]
[1761951808125,3.88343358,109800.0,109790.0,0.00027087]
[1761951808324,3.88543358,109800.0,109790.0,0.00027087]
[1761951808731,3.88343358,109800.0,109790.0,0.00027087]
[1761951808935,3.88543358,109800.0,109790.0,0.00027087]
[1761951809158,3.88343358,109800.0,109790.0,0.00027087]
[1761951809375,3.88543358,109800.0,109790.0,0.00027087]
[1761951809579,3.88343358,109800.0,109790.0,0.00027087]
[1761951810223,3.95232753,109800.0,109790.0,0.00027087]
[1761951810580,3.95432753,109800.0,109790.0,0.00027087]
[1761951810963,3.93803841,109800.0,109790.0,0.00027087]
[1761951812563,3.94003841,109800.0,109790.0,0.00027087]
[1761951814396,3.95432783,109800.0,109790.0,0.00027087]
[1761951814589,3.99163432,109800.0,109790.0,0.00027087]
[1761951815041,3.95432783,109800.0,109790.0,0.00027087]
[1761951815600,3.95232783,109800.0,109790.0,0.00027087]
[1761951816171,3.95432783,109800.0,109790.0,0.00027087]
[1761951816552,3.93745783,109800.0,109790.0,0.00027087]
[1761951817370,3.95432783,109800.0,109790.0,0.00027087]
[1761951817575,3.95232783,109800.0,109790.0,0.00027087]
[1761951818792,3.95432783,109800.0,109790.0,0.00027087]
[1761951819158,3.95232783,109800.0,109790.0,0.00027087]
[1761951819972,3.95432783,109800.0,109790.0,0.00027087]
[1761951820419,3.95232783,109800.0,109790.0,0.00027087]
[1761951820881,3.95432783,109800.0,109790.0,0.00027087]
[1761951821763,3.95232783,109800.0,109790.0,0.00027087]
[1761951822033,3.95432783,109800.0,109790.0,0.00027087]
[1761951822459,3.95232783,109800.0,109790.0,0.00027087]
[1761951822691,3.12882179,109800.0,109790.0,0.02770087]
[1761951822899,3.91945783,109800.0,109790.0,0.05094087]
[1761951825537,3.90516841,109800.0,109790.0,0.05094087]
[1761951827538,3.90716841,109800.0,109790.0,0.05094087]
[1761951827746,3.90516841,109800.0,109790.0,0.05094087]
[1761951827956,3.86898613,109800.0,109790.0,0.05094087]
[1761951828600,3.88327526,109800.0,109790.0,0.05094087]
[1761951831331,4.27855455,109800.0,109790.0,0.05094087]
[1761951832732,3.09263922,109800.0,109790.0,0.05094087]
[1761951832933,4.27855455,109800.0,109790.0,0.05094087]
[1761951833418,4.27855836,109800.0,109790.0,0.05094087]
[1761951841622,4.26426923,109800.0,109790.0,0.05094087]
[1761951842056,4.27948923,109800.0,109790.0,0.00027087]
[1761951842258,4.29635923,109800.0,109790.0,0.00027087]
[1761951842679,4.29835923,109800.0,109790.0,0.00027087]
[1761951844478,4.29635923,109800.0,109790.0,0.00027087]
[1761951845142,4.29835773,109800.0,109790.0,0.00027087]
[1761951845969,4.29635773,109800.0,109790.0,0.00027087]
[1761951846375,4.28131337,109800.0,109790.0,0.00027087]
[1761951846784,4.73550345,109800.0,109790.0,0.00027087]
[1761951848064,4.73350345,109800.0,109790.0,0.00027087]
[1761951848659,4.73550345,109800.0,109790.0,0.00027087]
[1761951849796,4.74402871,109800.0,109790.0,0.00027087]
[1761951850245,4.73550345,109800.0,109790.0,0.00027087]
[1761951850472,4.73350345,109800.0,109790.0,0.00027087]
[1761951850897,3.51549812,109800.0,109790.0,0.05153087]
[1761951851132,4.71663345,109800.0,109790.0,0.05153087]
[1761951852012,4.74220942,109800.0,109790.0,0.05153087]
[1761951852223,4.75649861,109800.0,109790.0,0.05153087]
[1761951853560,4.74127861,109800.0,109790.0,0.05153087]
[1761951854624,4.75666861,109800.0,109790.0,0.05153087]
[1761951856756,4.78945919,109800.0,109790.0,0.05153087]
[1761951857573,4.77517,109800.0,109790.0,0.05153087]
[1761951859926,4.75978,109800.0,109790.0,0.05153087]
[1761951860519,4.77406919,109800.0,109790.0,0.05153087]
[1761951862559,4.75978141,109800.0,109790.0,0.05153087]
[1761951863394,4.18232694,109800.0,109790.0,0.05153087]
[1761951863601,4.26279177,109800.0,109790.0,0.05153087]
[1761951863846,4.08064241,109800.0,109790.0,0.05153087]
[1761951864574,4.07964241,109800.0,109790.0,0.05153087]
[1761951865269,4.09093108,109800.0,109790.0,0.05153087]
[1761951865476,4.27308044,109800.0,109790.0,0.05153087]
[1761951865963,4.27308044,109800.0,109790.0,0.05353087]
[1761951867666,4.2730734,109800.0,109790.0,0.05353087]
[1761951869883,4.25878473,109800.0,109790.0,0.05353087]
[1761951872246,4.07663537,109800.0,109790.0,0.05353087]
[1761951873396,4.09092404,109800.0,109790.0,0.05353087]
[1761951874101,4.2730734,109800.0,109790.0,0.05353087]
[1761951876671,3.48246318,109800.0,109790.0,0.05353087]
[1761951876914,4.2730734,109800.0,109790.0,0.05353087]
[1761951881882,3.75092404,109800.0,109790.0,0.05353087]
[1761951882141,4.07387902,109800.0,109790.0,0.05353087]
[1761951882593,4.059584,109800.0,109790.0,0.05353087]
[1761951883231,4.05105868,109800.0,109790.0,0.05353087]
[1761951883453,4.05957941,109800.0,109790.0,0.05353087]
[1761951883665,4.04529074,109800.0,109790.0,0.05353087]
[1761951884513,4.2274401,109800.0,109790.0,0.05353087]
[1761951884724,4.20779822,109800.0,109790.0,0.05353087]
[1761951884954,4.0452801,109800.0,109790.0,0.05353087]
[1761951886316,4.22742946,109800.0,109790.0,0.05353087]
[1761951886788,4.24171796,109800.0,109790.0,0.05353087]
[1761951888808,4.0595686,109800.0,109790.0,0.05353087]
[1761951889639,4.0595686,109800.0,109790.0,0.63100193]
[1761951889640,0.0592885,109800.0,109790.0,0.63100193]
[1761951889883,0.045,109800.0,109790.0,0.6583808]
[1761951890580,0.045,109800.0,109790.0,0.6563808]
[1761951891028,0.045,109800.0,109790.0,0.6613808]
[1761951891273,0.045,109800.0,109790.0,0.26607569]
[1761951891501,0.045,109800.0,109790.0,0.6613808]
[1761951893392,0.045,109800.0,109790.0,0.26607569]
[1761951902786,0.045,109800.0,109790.0,0.08390974]
[1761951903022,0.44002171,109800.0,109790.0,0.10212633]
[1761951903468,3.25415271,109800.0,109790.0,0.05653087]
[1761951903924,2.859131,109800.0,109790.0,0.05653087]
[1761951904126,3.25415271,109800.0,109790.0,0.05653087]
[1761951904795,3.26843999,109800.0,109790.0,0.05653087]
[1761951905229,3.45058935,109800.0,109790.0,0.05653087]
[1761951905700,3.26843999,109800.0,109790.0,0.05653087]
[1761951910085,3.2827319,109800.0,109790.0,0.05653087]
[1761951910449,3.26843999,109800.0,109790.0,0.05653087]
[1761951911628,3.45058935,109800.0,109790.0,0.05653087]
[1761951911826,3.47797016,109800.0,109790.0,0.05653087]
[1761951912263,3.2958208,109800.0,109790.0,0.05653087]
[1761951912589,3.47797016,109800.0,109790.0,0.05653087]
[1761951913592,3.49226213,109800.0,109790.0,0.05653087]
[1761951914032,3.49226213,109800.0,109790.0,0.05253087]
[1761951914202,3.31011277,109800.0,109790.0,0.05253087]
[1761951915019,3.47797485,109800.0,109790.0,0.05253087]
[1761951916068,3.29582549,109800.0,109790.0,0.05253087]
[1761951916266,3.47797485,109800.0,109790.0,0.05253087]
[1761951918105,3.49226245,109800.0,109790.0,0.05253087]
[1761951918242,3.47797485,109800.0,109790.0,0.05253087]
[1761951918659,3.28115643,109800.0,109790.0,0.05253087]
[1761951918862,3.28115685,109800.0,109790.0,0.05253087]
[1761951921914,3.08984153,109800.0,109790.0,0.05253087]
[1761951926919,2.90769217,109800.0,109790.0,0.05253087]
[1761951933437,2.92732937,109800.0,109790.0,0.05253087]
[1761951934058,2.94161697,109800.0,109790.0,0.05253087]
[1761951934234,2.92732937,109800.0,109790.0,0.05253087]
[1761951936190,3.10947873,109800.0,109790.0,0.05253087]
[1761951937018,2.92732937,109800.0,109790.0,0.05253087]
[1761951939028,3.10947873,109800.0,109790.0,0.05253087]
[1761951940484,3.08984153,109800.0,109790.0,0.05253087]
[1761951940934,2.90769217,109800.0,109790.0,0.05253087]
[1761951942061,2.9273359,109800.0,109790.0,0.05253087]
[1761951943914,2.72362951,109800.0,109790.0,0.05253087]
[1761951944144,3.11865122,109800.0,109790.0,0.05253087]
[1761951944367,3.30080058,109800.0,109790.0,0.05253087]
[1761951944833,3.11865122,109800.0,109790.0,0.05253087]
[1761951945052,3.07687107,109800.0,109790.0,0.05253087]
[1761951945301,3.10425248,109800.0,109790.0,0.05253087]
[1761951945533,3.11854462,109800.0,109790.0,0.05253087]
[1761951946903,3.15446001,109800.0,109790.0,0.02901087]
[1761951947760,2.95604065,109800.0,109790.0,0.05302087]
[1761951950913,2.97032838,109800.0,109790.0,0.05302087]
[1761951951358,2.95604065,109800.0,109790.0,0.05302087]
[1761951953782,3.13819001,109800.0,109790.0,0.05302087]
[1761951954653,3.15247773,109800.0,109790.0,0.05302087]
[1761951955271,3.16874773,109800.0,109790.0,0.05302087]
[1761951955474,3.56420228,109800.0,109790.0,0.05302087]
[1761951956329,3.54793228,109800.0,109790.0,0.05302087]
[1761951956955,3.56420228,109800.0,109790.0,0.05302087]
[1761951958314,3.56420228,109800.0,109790.0,0.02901087]
[1761951959390,3.56420228,109800.0,109790.0,0.05302087]
[1761951961603,3.54991456,109800.0,109790.0,0.05302087]
[1761951961807,3.56678456,109800.0,109790.0,0.00127087]
[1761951962411,3.97054822,109800.0,109790.0,0.00127087]
[1761951963023,3.95625608,109800.0,109790.0,0.00127087]
[1761951963479,3.90101795,109800.0,109790.0,0.00127087]
[1761951963670,4.29625608,109800.0,109790.0,0.00127087]
[1761951965365,4.29625608,109800.0,109790.0,0.00027087]
[1761951965605,4.36627137,109800.0,109790.0,0.00027087]
[1761951965779,4.36727137,109800.0,109790.0,0.00027087]
[1761951966207,4.38156457,109800.0,109790.0,0.00027087]
[1761951966977,4.31154928,109800.0,109790.0,0.00027087]
[1761951968195,3.91631115,109800.0,109790.0,0.00027087]
[1761951968502,4.31154928,109800.0,109790.0,0.00027087]
[1761951968710,4.32583813,109800.0,109790.0,0.00027087]
[1761951970473,4.39285179,109800.0,109790.0,0.00027087]
[1761951970684,4.32583813,109800.0,109790.0,0.00027087]
[1761951971093,4.30896813,109800.0,109790.0,0.00027087]
[1761951971306,3.91371613,109800.0,109790.0,0.02801087]
[1761951971511,3.88633472,109800.0,109790.0,0.02801087]
[1761951972419,3.91372003,109800.0,109790.0,0.02801087]
[1761951973221,3.88633472,109800.0,109790.0,0.02801087]
[1761951974629,3.87204587,109800.0,109790.0,0.02801087]
[1761951974859,3.88633456,109800.0,109790.0,0.02801087]
[1761951977532,3.0958583,109800.0,109790.0,0.02801087]
[1761951977731,3.88633456,109800.0,109790.0,0.02801087]
[1761951980168,3.87204587,109800.0,109790.0,0.02801087]
[1761951983393,3.93076298,109800.0,109790.0,0.02801087]
[1761951983906,3.93076298,109800.0,109790.0,0.01204087]
[1761951984111,4.34287111,109800.0,109790.0,0.00027087]
[1761951984536,4.3285824,109800.0,109790.0,0.00027087]
[1761951987292,4.3305824,109800.0,109790.0,0.00027087]
[1761951987747,4.3448714,109800.0,109790.0,0.00027087]